[Event "British Championship 2024"]
[Site "Hull"]
[Date "2024.07.31"]
[Round "2.16"]
[White "Hebden, Mark L"]
[Black "Saunders, Aron"]
[Result "1-0"]
[Annotator "RC"]
[ECO "D15"]
[WhiteElo "2398"]
[BlackElo "2105"]
[PlyCount "81"]
[EventDate "2024.07.31"]
[EventCountry "GBR"]
[SourceTitle "playchess.com"]
[Source "ChessBase"]
[SourceQuality "1"]
[TimeControl "40/5400+30:1800+30"]

1. d4 {[%emt 0:00:21]} d5 {[%emt 0:00:05]} 2. c4 {[%emt 0:00:39]} c6 {[%emt 0:00:05]} 3. Nf3 {[%emt 0:01:20]} Nf6 {[%emt 0:00:08]} 4. Nc3 {[%emt 0:01:15]} dxc4 {[%emt 0:00:30]} 5. e4 {[%emt 0:00:49]} b5 {[%emt 0:00:42]} 6. Be2 {[%emt 0:00:07]} e6 {[%emt 0:00:32]} 7. O-O {[%emt 0:00:09]} a5 {[%emt 0:01:16]} 8. a4 {[%emt 0:01:43]} b4 {[%emt 0:00:33]} 9. e5 {[%emt 0:00:21]} Nd5 {[%emt 0:00:34]} 10. Ne4 {[%emt 0:00:15]} c3 {[%emt 0:02:07]} 11. bxc3 {[%emt 0:03:02]} bxc3 {[%emt 0:00:30]} 12. Bg5 {[%emt 0:01:11]} Qc7 {[%emt 0:03:42]} 13. Ne1 {[%emt 0:03:13]} h6 {[%emt 0:04:04]} 14. Bh4 {[%emt 0:04:36]} Ba6 {[%emt 0:04:14]} 15. Nc2 {[%emt 0:01:28]} Nd7 {[%emt 0:07:45]} 16. Bxa6 {[%emt 0:01:06]} Rxa6 {[%emt 0:00:08]} 17. Ne3 {[%emt 0:04:12]} N7b6 {[%emt 0:03:56]} 18. Qd3 {[%emt 0:02:31]} Ra8 {[%emt 0:01:05]} 19. Bg3 {[%emt 0:03:51]} Bb4 {[%emt 0:06:42]} 20. Nd6+ {[%emt 0:03:23]} Bxd6 {[%emt 0:04:04]} 21. exd6 {[%emt 0:00:10]} Qc8 {[%emt 0:00:17]} 22. Rfc1 {[%emt 0:01:12]} O-O {[%emt 0:02:31]} 23. Nd1 {[%emt 0:00:36]} Qa6 {[%emt 0:07:42]} 24. Qxa6 {[%emt 0:00:33]} Rxa6 {[%emt 0:00:04]} 25. Nxc3 {[%emt 0:00:08]} Nxc3 {[%emt 0:06:40]} 26. Rxc3 {[%emt 0:00:08]} Nd5 {[%emt 0:00:03]} 27. Rb3 {[%emt 0:02:58]} Nb4 {[%emt 0:01:57]} 28. Rc1 {[%emt 0:00:52]} Rd8 {[%emt 0:01:40]} 29. h4 {[%emt 0:00:27]} h5 {[%emt 0:03:23]} 30. Rc5 {[%emt 0:00:22]} g6 {[%emt 0:00:41]} 31. Be5 {[%emt 0:00:29]} Kf8 {[%emt 0:03:34]} 32. f3 {[%emt 0:00:42]} f6 {[%emt 0:13:23]} 33. Bxf6 {[%emt 0:03:23]} Rxd6 {[%emt 0:00:05]} 34. Rg5 {[%emt 0:01:29]} Kf7 {[%emt 0:00:12]} 35. Be5 {[%emt 0:00:07]} Rd5 {[%emt 0:00:29]} 36. g4 {[%emt 0:00:32]} hxg4 {[%emt 0:00:34]} 37. fxg4 {[%emt 0:00:14]} Nc2 {[%emt 0:02:48]} 38. Rb7+ {[%emt 0:00:54]} Kf8 {[%emt 0:00:37]} 39. Rxg6 {[%emt 0:00:25]} Nxd4 {[%emt 0:00:47]} 40. Bg7+ {[%emt 0:01:27]} Ke8 {[%emt 0:00:20]} 41. Bxd4 {[%emt 0:30:12]} 1-0

[Event "British Championship 2024"]
[Site "Hull"]
[Date "2024.07.31"]
[Round "2.17"]
[White "Wells, Peter K"]
[Black "Dicen, Elis Denele"]
[Result "1/2-1/2"]
[Annotator "RC"]
[ECO "D20"]
[WhiteElo "2354"]
[BlackElo "2073"]
[PlyCount "51"]
[EventDate "2024.07.31"]
[EventCountry "GBR"]
[SourceTitle "playchess.com"]
[Source "ChessBase"]
[SourceQuality "1"]
[TimeControl "40/5400+30:1800+30"]

1. d4 {[%emt 0:04:13]} d5 {[%emt 0:00:06]} 2. c4 {[%emt 0:00:32]} dxc4 {[%emt 0:00:07]} 3. e4 {[%emt 0:00:29]} e5 {[%emt 0:00:27]} 4. Nf3 {[%emt 0:00:13]} exd4 {[%emt 0:00:44]} 5. Bxc4 {[%emt 0:00:09]} Nc6 {[%emt 0:01:08]} 6. O-O {[%emt 0:00:45]} Be6 {[%emt 0:01:02]} 7. Bb5 {[%emt 0:01:00]} Bc5 {[%emt 0:00:43]} 8. b4 {[%emt 0:00:51]} Bb6 {[%emt 0:00:53]} 9. a4 {[%emt 0:00:26]} a6 {[%emt 0:00:41]} 10. Bxc6+ {[%emt 0:00:10]} bxc6 {[%emt 0:00:07]} 11. Nbd2 {[%emt 0:00:49]} Nf6 {[%emt 0:10:14]} 12. Ne5 {[%emt 0:04:22]} c5 {[%emt 0:12:33]} 13. a5 {[%emt 0:15:26]} Ba7 {[%emt 0:01:05]} 14. bxc5 {[%emt 0:03:24]} Bxc5 {[%emt 0:04:32]} 15. Qa4+ {[%emt 0:23:25]} Bd7 {[%emt 0:19:50]} 16. Qc4 {[%emt 0:05:49]} Qe7 {[%emt 0:00:39]} 17. Nd3 {[%emt 0:18:11]} Bd6 {[%emt 0:17:51]} 18. e5 {[%emt 0:05:26]} Bb5 {[%emt 0:03:02]} 19. Qxd4 {[%emt 0:05:36]} Bxd3 {[%emt 0:02:41]} 20. exf6 {[%emt 0:00:22]} Qxf6 {[%emt 0:06:20]} 21. Qxd3 {[%emt 0:02:41]} Qxa1 {[%emt 0:02:03]} 22. Qe4+ {[%emt 0:00:22]} Kd7 {[%emt 0:00:26]} 23. Qg4+ {[%emt 0:03:12]} Ke8 {[%emt 0:03:11]} 24. Qe4+ {[%emt 0:00:27]} Kd7 {[%emt 0:00:10]} 25. Qg4+ {[%emt 0:01:22]} Ke8 {[%emt 0:00:14]} 26. Qe4+ {[%emt 0:00:31]} 1/2-1/2

[Event "British Championship 2024"]
[Site "Hull"]
[Date "2024.07.31"]
[Round "2.18"]
[White "Derakhshani, Borna"]
[Black "Madhavan, Sanjith"]
[Result "1-0"]
[Annotator "RC"]
[ECO "B12"]
[WhiteElo "2355"]
[BlackElo "1998"]
[PlyCount "63"]
[EventDate "2024.07.31"]
[EventCountry "GBR"]
[SourceTitle "playchess.com"]
[Source "ChessBase"]
[SourceQuality "1"]
[TimeControl "40/5400+30:1800+30"]

1. e4 {[%emt 0:01:15]} c6 {[%emt 0:00:04]} 2. d4 {[%emt 0:00:09]} d5 {[%emt 0:00:05]} 3. e5 {[%emt 0:00:04]} Bf5 {[%emt 0:00:14]} 4. Nf3 {[%emt 0:00:35]} e6 {[%emt 0:00:30]} 5. Be2 {[%emt 0:00:08]} Nd7 {[%emt 0:00:31]} 6. O-O {[%emt 0:00:14]} h6 {[%emt 0:00:45]} 7. c3 {[%emt 0:01:04]} Ne7 {[%emt 0:01:38]} 8. b4 {[%emt 0:00:30]} Nc8 {[%emt 0:03:50]} 9. Na3 {[%emt 0:06:38]} b5 {[%emt 0:03:56]} 10. Nc2 {[%emt 0:01:19]} a5 {[%emt 0:00:58]} 11. bxa5 {[%emt 0:02:12]} Bxc2 {[%emt 0:08:19]} 12. Qxc2 {[%emt 0:00:34]} Qxa5 {[%emt 0:00:10]} 13. Nd2 {[%emt 0:03:07]} Qa4 {[%emt 0:07:03]} 14. Qd3 {[%emt 0:02:32]} Ba3 {[%emt 0:07:29]} 15. f4 {[%emt 0:04:57]} g6 {[%emt 0:03:32]} 16. Nf3 {[%emt 0:14:06]} h5 {[%emt 0:10:12]} 17. Ng5 {[%emt 0:15:01]} Ne7 {[%emt 0:02:12]} 18. Qh3 {[%emt 0:04:09]} Rf8 {[%emt 0:08:08]} 19. Bd3 {[%emt 0:04:53]} Ra6 {[%emt 0:04:15]} 20. Kh1 {[%emt 0:06:28]} Qa5 {[%emt 0:07:19]} 21. Bd2 {[%emt 0:05:22]} Qc7 {[%emt 0:01:07]} 22. Rae1 {[%emt 0:00:39]} Rg8 {[%emt 0:04:15]} 23. Rf3 {[%emt 0:04:11]} Bb2 {[%emt 0:03:54]} 24. Nh7 {[%emt 0:13:07]} Rxa2 {[%emt 0:04:49]} 25. Bb1 {[%emt 0:00:49]} Ra1 {[%emt 0:01:27]} 26. Rff1 {[%emt 0:00:22]} Ra3 {[%emt 0:05:12]} 27. Nf6+ {[%emt 0:01:34]} Nxf6 28. exf6 {[%emt 0:00:01]} Nf5 {[%emt 0:01:54]} 29. Bxf5 {[%emt 0:00:24]} gxf5 {[%emt 0:00:05]} 30. Qxf5 {[%emt 0:01:46]} Bxc3 {[%emt 0:00:57]} 31. Qh7 {[%emt 0:03:31]} Kf8 {[%emt 0:01:37]} 32. Rxe6 {[%emt 0:00:41]} 1-0

[Event "British Championship 2024"]
[Site "Hull"]
[Date "2024.07.31"]
[Round "2.19"]
[White "Merry, Alan B"]
[Black "Rathbone-Jones, Ifan"]
[Result "1-0"]
[Annotator "TA"]
[ECO "E64"]
[WhiteElo "2429"]
[BlackElo "2014"]
[PlyCount "75"]
[EventDate "2024.07.31"]
[EventCountry "GBR"]
[SourceTitle "playchess.com"]
[Source "ChessBase"]
[SourceQuality "1"]
[TimeControl "40/5400+30:1800+30"]

{[%evp 23,75,39,50,0,50,27,32,38,62,58,70,63,80,70,79,69,83,75,81,73,74,59,214,213,722,702,743,722,634,503,681,667,656,495,656,645,661,669,652,650,729,697,720,737,1076,829,1375,1327,1656,1764,29989,29990,29990,29991]} 1. d4 {[%emt 0:00:03]} Nf6 {[%emt 0:00:06]} 2. c4 {[%emt 0:00:03]} c5 {[%emt 0:00:10]} 3. d5 {[%emt 0:00:04]} d6 {[%emt 0:00:04]} 4. Nc3 {[%emt 0:00:21]} g6 {[%emt 0:00:16]} 5. g3 {[%emt 0:00:09]} Bg7 {[%emt 0:00:30]} 6. Bg2 {[%emt 0:00:05]} Na6 {[%emt 0:00:21]} 7. Nf3 {[%emt 0:00:24]} Nc7 {[%emt 0:02:25]} 8. O-O {[%emt 0:03:40]} a6 {[%emt 0:00:16]} 9. a4 {[%emt 0:00:26]} Rb8 {[%emt 0:00:10]} 10. a5 {[%emt 0:00:36]} b5 {[%emt 0:00:15]} 11. axb6 {[%emt 0:00:04]} Rxb6 {[%emt 0:00:12]} 12. h3 {[%emt 0:06:47]} O-O {[%emt 0:00:32]} 13. Qc2 {[%emt 0:04:29]} ({Better is} 13. e4 $14) 13... Bd7 {[%emt 0:00:29]} (13... Rb4 $11) 14. Ra3 {[%emt 0:11:31]} Qc8 {[%emt 0:01:42]} 15. Kh2 {[%emt 0:00:07] White is slightly better.} Qb7 {[%emt 0:00:08]} 16. Nd2 {[%emt 0:03:13]} Rb8 {[%emt 0:01:15]} 17. b3 {[%emt 0:00:21]} h5 {[%emt 0:03:11]} 18. Bb2 {[%emt 0:01:29]} Qc8 {[%emt 0:09:55]} 19. e4 {[%emt 0:18:55]} e5 {[%emt 0:20:09]} 20. Ne2 {[%emt 0:04:15]} h4 {[%emt 0:00:51]} 21. gxh4 {[%emt 0:04:00]} Nh5 {[%emt 0:01:12]} 22. f4 {[%emt 0:03:44][%cal Bf2f4,Bf4e5,Be5d6][%mdl 32]} Bh6 $2 {[%emt 0:06:12] This move loses the game for Black.} (22... Ne8 $14) 23. fxe5 $18 {[%emt 0:03:53]} Bxd2 $2 {[%emt 0:00:46]} (23... dxe5 24. Bxe5 Ne8) 24. Qxd2 {[%emt 0:02:22][%cal Oe5e6] [#] And now e6! would win.} Rxb3 {[%emt 0:00:10]} 25. Rxb3 {[%emt 0:06:41]} Rxb3 {[%emt 0:00:09]} 26. Rf3 {[%emt 0:03:16]} Rb4 {[%emt 0:06:40]} 27. exd6 {[%emt 0:03:53]} Ne8 {[%emt 0:00:16]} 28. Qc3 {[%emt 0:05:42]} f6 {[%emt 0:00:32]} 29. e5 {[%emt 0:01:28]} Qb8 {[%emt 0:00:06]} 30. Ba3 {[%emt 0:01:52][%cal Bb2a3,Ba3b4,Bb4c5][%mdl 32]} fxe5 {[%emt 0:02:22][%cal Oe5e4]} 31. Bxb4 {[%emt 0:01:51]} (31. Qxe5 Rxc4 32. Nf4 Rxf4 33. Rxf4 Nxf4 34. Qxf4 Qxd6 35. Qxd6 Nxd6 36. Bxc5 Nf5 $18) 31... e4 {[%emt 0:04:59]} 32. Bxc5 {[%emt 0:02:02]} exf3 {[%emt 0:00:02]} 33. Bxf3 {[%emt 0:00:17][%cal Bg2f3,Bf3h5,Bh5g6][%mdl 32]} Nxd6 {[%emt 0:10:20]} 34. Qe5 {[%emt 0:01:48][%csl LRd6,LRh5]} Qb3 {[%emt 0:00:01]} 35. Bxh5 {[%emt 0:04:54][%cal Oc5d4] White wants to mate with Bd4!} Qxh3+ {[%emt 0:12:48]} 36. Kg1 {[%emt 0:00:04]} Nf5 {[%emt 0:00:10] Prevents Bd4} 37. Qb8+ {[%emt 0:02:35]} Kh7 {[%emt 0:00:31] [#]} 38. Bxg6+ $1 {[%emt 0:02:06] Weighted Error Value: White=0.32/Black=0.82.  Mistake:       	---       	Black=3      OK:         	White=4     	Black=5      Best:        	White=2     	Black=1} 1-0

[Event "British Championship 2024"]
[Site "Hull"]
[Date "2024.07.31"]
[Round "2.20"]
[White "Lentzos, Ioanis"]
[Black "Adams, Michael"]
[Result "0-1"]
[Annotator "TA"]
[ECO "E11"]
[WhiteElo "2119"]
[BlackElo "2670"]
[PlyCount "100"]
[EventDate "2024.07.31"]
[EventCountry "GBR"]
[SourceTitle "playchess.com"]
[Source "ChessBase"]
[SourceQuality "1"]
[TimeControl "40/5400+30:1800+30"]

{[%evp 9,100,31,43,40,48,33,32,28,44,0,0,0,0,6,29,31,29,10,8,2,5,10,3,10,5,10,9,0,0,0,0,-65,-16,-25,0,0,0,0,11,0,0,9,7,0,0,5,43,-88,-81,-88,-83,-89,-87,-357,-358,-293,-316,-351,-354,-304,-293,-364,-354,-250,-200,-399,-415,-421,-408,-408,-417,-605,-606,-635,-631,-661,-646,-800,-787,-1077,-1060,-1136,-1107,-1140,-1134,-983,-962,-1349,-1315,-2152,-2022,-5904,-5746]} 1. d4 {[%emt 0:00:02]} Nf6 {[%emt 0:00:10]} 2. c4 {[%emt 0:00:05]} e6 {[%emt 0:00:05]} 3. Nf3 {[%emt 0:00:04]} Bb4+ {[%emt 0:00:08]} 4. Bd2 {[%emt 0:00:13]} a5 {[%emt 0:00:10]} 5. a3 {[%emt 0:01:32]} Be7 {[%emt 0:04:20]} 6. Nc3 {[%emt 0:00:40]} d5 {[%emt 0:00:10]} 7. Bf4 {[%emt 0:00:52]} c6 {[%emt 0:07:27]} 8. e3 {[%emt 0:02:24] White is slightly better.} Nbd7 {[%emt 0:00:32]} 9. c5 {[%emt 0:06:34]} Nh5 {[%emt 0:02:50]} 10. Bd3 {[%emt 0:01:02]} Nxf4 {[%emt 0:00:55]} 11. exf4 {[%emt 0:00:05]} Qc7 {[%emt 0:00:09]} 12. g3 {[%emt 0:00:13]} b6 {[%emt 0:06:12]} 13. b4 {[%emt 0:01:14]} Ba6 {[%emt 0:00:10]} 14. Bxa6 {[%emt 0:08:51]} Rxa6 {[%emt 0:00:02]} 15. Qe2 {[%emt 0:00:15]} Ra7 {[%emt 0:09:40] [#] And now ...axb4 would win.} 16. O-O {[%emt 0:02:40][%cal Of4f5]} g6 {[%emt 0:04:42]} 17. Rfc1 {[%emt 0:17:53]} O-O {[%emt 0:06:52]} 18. cxb6 {[%emt 0:11:37]} Qxb6 {[%emt 0:01:00]} 19. b5 {[%emt 0:01:09]} a4 {[%emt 0:18:39]} 20. Ng5 {[%emt 0:32:49]} (20. Rab1 $11) 20... Bxg5 {[%emt 0:09:59]} (20... Qxd4 $2 21. bxc6 Qf6 22. Nb5 $18 (22. cxd7 Rxd7 23. Nxa4 e5 $18)) (20... Rc7 $15 21. bxc6 Qxc6 (21... Qxd4 $2 22. Nxe6 fxe6 23. Nb5 $18) (21... Rxc6 22. Nxd5 exd5 23. Qxe7 $14)) 21. fxg5 $11 {[%emt 0:00:04]} c5 {[%emt 0:05:00]} 22. dxc5 {[%emt 0:03:01]} Nxc5 {[%emt 0:00:13] [#] ...Nb3 is the strong threat.} 23. Qe3 {[%emt 0:01:27][%cal Oc3d5] aiming for Nxd5!} Rc8 {[%emt 0:03:27]} 24. Rab1 {[%emt 0:00:42]} Rac7 $1 {[%emt 0:01:58]} 25. Rd1 {[%emt 0:01:14]} Nd7 {[%emt 0:10:46][%cal Bc5d7,Bd7e5,Be5f3][%mdl 32]} 26. Nxa4 {[%emt 0:00:35]} Qxe3 {[%emt 0:01:37]} 27. fxe3 {[%emt 0:00:04][%cal Oe3e4]} Ne5 {[%emt 0:00:09]} 28. Nb6 {[%emt 0:02:15]} (28. Rf1 $14 {keeps the upper hand.}) 28... Rb8 $17 {[%emt 0:00:29][%mdl 1024] Black has strong compensation.} 29. Na4 {[%emt 0:02:15]} Rc4 $36 {[%emt 0:01:52][%mdl 2048] Keeping White busy.} 30. Nb2 {[%emt 0:01:11]} Rc2 {[%emt 0:00:12] Black is more active.} 31. a4 $2 {[%emt 0:00:12][%mdl 8192] This costs White the game.} (31. Nd3 $17 {is the only way for White.} Nf3+ 32. Kf1) 31... Nf3+ $19 {[%emt 0:00:18]} 32. Kf1 {[%emt 0:00:09]} Nxh2+ {[%emt 0:00:11]} 33. Kg1 {[%emt 0:00:09]} Nf3+ {[%emt 0:00:05]} 34. Kf1 {[%emt 0:00:02]} Nd2+ {[%emt 0:01:44]} (34... Nxg5 35. Rdc1 Rd2 36. Nd1 $11) 35. Ke1 {[%emt 0:00:09]} Nxb1 {[%emt 0:00:44]} 36. Rxb1 {[%emt 0:00:06][%mdl 4096] Endgame. KRR-KRN} Kf8 {[%emt 0:01:18] White must now prevent ...Rc3.} (36... Rg2 37. Nd1) 37. Kd1 $2 {[%emt 0:01:00]} (37. Nd3) 37... Rc3 {[%emt 0:01:17]} 38. Kd2 {[%emt 0:00:17]} Rb3 {[%emt 0:00:44] Strongly threatening ...Rc8.} 39. Kc2 {[%emt 0:00:46]} Ra3 {[%emt 0:00:19] ...Rc8+ would now be deadly.} (39... Rxe3 40. Nd3 Re4 (40... Rxg3 $2 41. b6 $19) 41. Kb3 $19) 40. Rd1 {[%emt 0:00:56]} (40. Kd2 $142 d4 41. e4) 40... Rc8+ {[%emt 0:00:34] Black is clearly winning.} 41. Kb1 {[%emt 0:30:07]} Ke7 {[%emt 0:06:42]} 42. Rd4 {[%emt 0:00:00]} Rxe3 {[%emt 0:02:36]} 43. b6 {[%emt 0:00:00]} Rb3 {[%emt 0:03:21] Dodges Rb4} 44. a5 {[%emt 0:00:00]} Ra8 {[%emt 0:01:11]} (44... Rxg3 45. Rb4 Rb8 (45... Rxg5 $2 46. b7 $18) 46. Na4 Rxg5 47. a6 Rg1+ 48. Ka2 Rg2+ 49. Ka3 Rg3+ 50. Rb3 $18) 45. Kc2 {[%emt 0:00:00]} Rb5 {[%emt 0:00:09]} (45... Rxg3 46. b7 Rg2+ (46... Rxa5 $2 {perishes.} 47. b8=Q $18) 47. Kc3 $18) 46. Nd3 {[%emt 0:00:00]} Raxa5 {[%emt 0:00:47]} 47. Ne5 {[%emt 0:00:02]} Rxb6 {[%emt 0:00:39]} 48. Rf4 {[%emt 0:00:08]} Ra2+ {[%emt 0:00:45]} 49. Kc1 {[%emt 0:02:02]} Re2 {[%emt 0:00:47]} 50. Rxf7+ {[%emt 0:00:31]} Ke8 {[%emt 0:00:33] Weighted Error Value: White=0.84/Black=0.07 (flawless) .  Loses game:     	White=1     	---        Mistake:       	White=4     	Black=1      Inaccurate:     	White=1     	Black=1      OK:         	White=14    	Black=15     Best:        	White=3     	Black=5      Strong:       	---       	Black=1} 0-1

[Event "British Championship 2024"]
[Site "Hull"]
[Date "2024.07.31"]
[Round "2.21"]
[White "Pert, Richard G"]
[Black "Kanyamarala, Trisha"]
[Result "1-0"]
[Annotator "RC"]
[ECO "E14"]
[WhiteElo "2415"]
[BlackElo "2219"]
[PlyCount "59"]
[EventDate "2024.07.31"]
[EventCountry "GBR"]
[SourceTitle "playchess.com"]
[Source "ChessBase"]
[SourceQuality "1"]
[TimeControl "40/5400+30:1800+30"]

1. d4 {[%emt 0:00:12]} Nf6 {[%emt 0:00:16]} 2. c4 {[%emt 0:00:19]} e6 {[%emt 0:00:08]} 3. Nf3 {[%emt 0:00:09]} d5 {[%emt 0:00:23]} 4. e3 {[%emt 0:00:17]} Be7 {[%emt 0:02:48]} 5. b3 {[%emt 0:01:11]} O-O {[%emt 0:02:44]} 6. Bd3 {[%emt 0:01:04]} c5 {[%emt 0:09:39]} 7. O-O {[%emt 0:01:40]} cxd4 {[%emt 0:07:26]} 8. exd4 {[%emt 0:00:37]} Nc6 {[%emt 0:00:14]} 9. Bb2 {[%emt 0:02:10]} b6 {[%emt 0:02:24]} 10. Nbd2 {[%emt 0:12:17]} Bb7 {[%emt 0:01:36]} 11. Rc1 {[%emt 0:00:20]} Rc8 {[%emt 0:03:26]} 12. Qe2 {[%emt 0:04:30]} Re8 {[%emt 0:14:18]} 13. Rfd1 {[%emt 0:02:53]} Nh5 {[%emt 0:07:47]} 14. Bb1 {[%emt 0:09:05]} g6 {[%emt 0:03:05]} 15. Nf1 {[%emt 0:01:54]} Bf8 {[%emt 0:06:40]} 16. Qe3 {[%emt 0:12:51]} f6 {[%emt 0:10:54]} 17. Ng3 {[%emt 0:01:17]} Ng7 {[%emt 0:05:04]} 18. Re1 {[%emt 0:04:18]} Qd7 {[%emt 0:02:40]} 19. Qf4 {[%emt 0:03:17]} Be7 {[%emt 0:05:24]} 20. h4 {[%emt 0:05:55]} Qd8 {[%emt 0:08:27]} 21. h5 {[%emt 0:12:24]} g5 {[%emt 0:01:22]} 22. Qd2 {[%emt 0:02:13]} Bd6 {[%emt 0:01:13]} 23. cxd5 {[%emt 0:01:16]} exd5 {[%emt 0:00:51]} 24. Qd3 {[%emt 0:20:21]} f5 {[%emt 0:02:56]} 25. Nxf5 {[%emt 0:00:00]} Re4 {[%emt 0:00:41]} 26. Nxd6 {[%emt 0:00:00]} Qxd6 {[%emt 0:00:29]} 27. Rxe4 {[%emt 0:00:00]} Nb4 {[%emt 0:00:33]} 28. Rxc8+ {[%emt 0:00:00]} Bxc8 {[%emt 0:00:01]} 29. Qc3 {[%emt 0:00:00]} dxe4 {[%emt 0:00:56]} 30. Qxc8+ {[%emt 0:00:00]} 1-0

[Event "British Championship 2024"]
[Site "Hull"]
[Date "2024.07.31"]
[Round "2.22"]
[White "Villiers, Thomas"]
[Black "Czopor, Maciej"]
[Result "0-1"]
[Annotator "RC"]
[ECO "B45"]
[WhiteElo "2229"]
[BlackElo "2361"]
[PlyCount "118"]
[EventDate "2024.07.31"]
[EventCountry "GBR"]
[SourceTitle "playchess.com"]
[Source "ChessBase"]
[SourceQuality "1"]
[TimeControl "40/5400+30:1800+30"]

1. e4 {[%emt 0:00:08]} c5 {[%emt 0:00:09]} 2. Nf3 {[%emt 0:00:27]} Nc6 {[%emt 0:00:04]} 3. d4 {[%emt 0:00:28]} cxd4 {[%emt 0:00:05]} 4. Nxd4 {[%emt 0:00:09]} Nf6 {[%emt 0:00:05]} 5. Nc3 {[%emt 0:00:41]} e6 {[%emt 0:00:04]} 6. Nxc6 {[%emt 0:02:25]} bxc6 {[%emt 0:00:06]} 7. Bf4 {[%emt 0:00:26]} Bb4 {[%emt 0:02:08]} 8. Bd3 {[%emt 0:00:40]} d6 {[%emt 0:08:51]} 9. O-O {[%emt 0:02:45]} Bxc3 {[%emt 0:00:13]} 10. bxc3 {[%emt 0:00:07]} e5 {[%emt 0:00:02]} 11. Bg3 {[%emt 0:01:15]} O-O {[%emt 0:00:49]} 12. Qe2 {[%emt 0:08:44]} Nd7 {[%emt 0:07:40]} 13. Bc4 {[%emt 0:02:27]} Qe7 {[%emt 0:00:36]} 14. Rad1 {[%emt 0:02:08]} Nb6 {[%emt 0:08:17]} 15. f4 {[%emt 0:07:51]} Be6 {[%emt 0:01:47]} 16. Bb3 {[%emt 0:12:22]} f6 {[%emt 0:11:13]} 17. fxe5 {[%emt 0:01:37]} dxe5 {[%emt 0:01:56]} 18. Bf2 {[%emt 0:01:52]} Rfd8 {[%emt 0:02:43]} 19. Qa6 {[%emt 0:00:28]} Rdb8 {[%emt 0:04:56]} 20. Rd2 {[%emt 0:01:51]} h6 {[%emt 0:00:54]} 21. Rfd1 {[%emt 0:01:51]} Kh7 {[%emt 0:00:05]} 22. h3 {[%emt 0:03:15]} Bf7 {[%emt 0:01:59]} 23. a4 {[%emt 0:01:26]} Bg6 {[%emt 0:22:21]} 24. Qe2 {[%emt 0:06:09]} a5 {[%emt 0:04:41]} 25. Rd6 {[%emt 0:02:19]} Qc7 {[%emt 0:01:30]} 26. Kh2 {[%emt 0:03:35]} Nd5 {[%emt 0:03:02]} 27. Bxd5 {[%emt 0:00:37]} cxd5 {[%emt 0:00:06]} 28. R1xd5 {[%emt 0:01:49]} Qxc3 {[%emt 0:00:07]} 29. Rc5 {[%emt 0:04:21]} Qb4 {[%emt 0:01:06]} 30. Rd7 {[%emt 0:08:46]} Qxe4 {[%emt 0:08:52]} 31. Qxe4 {[%emt 0:00:31]} Bxe4 {[%emt 0:00:01]} 32. Rcc7 {[%emt 0:00:12]} Rg8 {[%emt 0:00:03]} 33. Bb6 {[%emt 0:01:07]} Ra6 {[%emt 0:01:06]} 34. Bc5 {[%emt 0:01:19]} Rc6 {[%emt 0:00:24]} 35. Rxc6 Bxc6 {[%emt 0:00:01]} 36. Ra7 {[%emt 0:00:55]} Rd8 {[%emt 0:02:19]} 37. g4 {[%emt 0:01:08]} Bxa4 {[%emt 0:01:49]} 38. c3 {[%emt 0:00:23]} Bc6 {[%emt 0:01:35]} 39. Rxa5 {[%emt 0:00:27]} Rd2+ {[%emt 0:00:04]} 40. Kg1 {[%emt 0:00:09]} Rd3 {[%emt 0:00:34]} 41. Kh2 {[%emt 0:30:19]} Rxc3 {[%emt 0:30:22]} 42. Bf2 {[%emt 0:00:12]} Rf3 {[%emt 0:00:27]} 43. Ra2 {[%emt 0:00:15]} Rd3 {[%emt 0:03:37]} 44. Rb2 {[%emt 0:00:36]} Bd5 {[%emt 0:00:06]} 45. Rc2 {[%emt 0:00:18]} Kg6 {[%emt 0:00:04]} 46. Be1 {[%emt 0:00:31]} Rd1 {[%emt 0:00:38]} 47. Re2 {[%emt 0:00:27]} Bf3 {[%emt 0:00:39]} 48. Re3 {[%emt 0:00:07]} h5 {[%emt 0:02:11]} 49. Kg3 {[%emt 0:00:31]} hxg4 {[%emt 0:00:09]} 50. hxg4 {[%emt 0:00:06]} Bd5 {[%emt 0:00:06]} 51. Bf2 {[%emt 0:01:25]} Be6 {[%emt 0:01:20]} 52. Ra3 {[%emt 0:01:08]} Rb1 {[%emt 0:00:00]} 53. Kh4 {[%emt 0:00:00]} Rb4 {[%emt 0:00:00]} 54. Rg3 {[%emt 0:00:00]} Kh6 {[%emt 0:00:00]} 55. Be3+ {[%emt 0:00:00]} g5+ {[%emt 0:00:00]} 56. Kh3 {[%emt 0:00:00]} Rxg4 {[%emt 0:00:00]} 57. Rxg4 {[%emt 0:00:00]} Kh5 {[%emt 0:00:00]} 58. Kg3 {[%emt 0:00:00]} Bxg4 {[%emt 0:00:00]} 59. Bc5 {[%emt 0:00:00]} f5 {[%emt 0:00:00]} 0-1